{"text_format":"1","workbook":"xlsx","n_sheets":11,"sheets":["d","intro","RP","Sc","FORM","sum","RC","cb","DB","HS","data"],"not_rendered":{"charts":1,"images":109,"macros":1,"external_links":0,"defined_names":79,"comments":1,"pivot_tables":0},"unopened":[],"bounds":{"document_bytes":16777216,"sheet_cells":100000,"rows_first":2000,"rows_last":500,"rows_between":2000,"halvings":0,"cell_chars":16384,"cell_head_chars":4096},"cells_cut":0,"cells_raw":0,"read":"whole","date_system":"1900"}

{"sheet":"d","index":0,"n_rows":34,"n_cols":21,"rows_kept":34,"cut":false,"hidden":false,"merged":[]}
[]
[]
[]
[]
[]
[]
[]
[]
[]
[]
[]
[]
[]
[]
[]
[]
[]
[]
[]
[]
[]
[]
[]
[]
[null,null,null,null,null,null,null,null,null,null,null,null,null,null,null,null,null,null,null,null," "]
[]
[]
[]
[]
[]
[]
[]
[]
[null,{"$f":"\"   \"&version","v":"   Version 1,00, November 2021"},null,null,null,null,null,null,null,null,null,null,null,null,null,null,{"$f":"authors","v":"Conception:  Thomas Tenkate and Daniel Drolet"}]

{"sheet":"intro","index":1,"n_rows":30,"n_cols":21,"rows_kept":30,"cut":false,"hidden":false,"merged":[]}
[" "]
[]
[]
[]
[]
[]
[]
[]
[]
[]
[]
[]
[]
[]
[]
[]
[]
[null,null,null,null,null,null,null,null,null,null,null,null,null,null," "]
[]
[]
[]
[]
[]
[]
[]
[]
[]
[]
[]
[null,{"$f":"\"   \"&version","v":"   Version 1,00, November 2021"},null,null,null,null,null,null,null,null,null,null,null,null,null,null,null,null,null,null,{"$f":"authors","v":"Conception:  Thomas Tenkate and Daniel Drolet"}]

{"sheet":"RP","index":2,"n_rows":35,"n_cols":19,"rows_kept":35,"cut":false,"hidden":false,"merged":[]}
[" "]
[]
[]
[]
[]
[]
[]
[]
[]
[]
[]
[]
[]
[]
[]
[]
[]
[]
[]
[]
[]
[]
[]
[]
[]
[]
[]
[]
[]
[]
[]
[]
[]
[]
[null,{"$f":"version","v":"Version 1,00, November 2021"},null,null,null,null,null,null,null,null,null,null,null,null,null,null,null,null,{"$f":"authors","v":"Conception:  Thomas Tenkate and Daniel Drolet"}]

{"sheet":"Sc","index":3,"n_rows":30,"n_cols":9,"rows_kept":30,"cut":false,"hidden":false,"merged":[[4,6,4,8],[9,3,10,4],[6,3,6,4]]}
[]
[]
[]
[]
[null,null,null,null,null,"Organization/Company Name"]
[]
[null,null,null,"Title of the SCENARIO"]
[]
[null,null,null,null,null,null,null,null,"2021-10-27"]
[null,null,null,"Description of the scenario ..."]
[]
[]
[]
[]
[]
[]
[null,null,"#","Chemical/Product","Supplier/Manufacturer","Process/Location","Note"]
[null,null,1]
[null,null,2]
[null,null,3]
[null,null,4]
[null,null,5]
[null,null,6]
[null,null,7]
[null,null,8]
[null,null,9]
[null,null,10]
[]
[]
[null,{"$f":"version","v":"Version 1,00, November 2021"},null,null,null,null,null,null,{"$f":"authors","v":"Conception:  Thomas Tenkate and Daniel Drolet"}]

{"sheet":"FORM","index":4,"n_rows":42,"n_cols":24,"rows_kept":42,"cut":false,"hidden":false,"merged":[]}
[]
[]
[]
[]
[]
[]
[]
[]
[]
[]
[]
[]
[]
[]
[]
[]
[null,null,null,null,null,null,null,null,null,"OP Temp      "]
[null,null,null,null,null,null,null,null,null,"BP      "]
[]
[]
[]
[]
[]
[null,null,"Hazard Statement","Code","Eye\nDamage","Inhalation","Local Skin Damage","Skin uptake, systemic"]
[null,1,null,null,{"$f":"Eye_Damage_Code($D25,Tb_HCodes)","v":""},{"$f":"Inhalation_Damage_Code($D25,Tb_HCodes)","v":""},{"$f":"LocalSkin_Damage_Code($D25,Tb_HCodes)","v":""},{"$f":"UptakeSkin_Damage_Code($D25,Tb_HCodes)","v":""}]
[null,2,null,null,"","","",""]
[null,3,null,null,"","","",""]
[null,4,null,null,"","","",""]
[null,5,null,null,"","","",""]
[null,6,null,null,"","","",""]
[null,7,null,null,"","","",""]
[null,8,null,null,"","","",""]
[null,9,null,null,"","","",""]
[null,10,null,null,"","","",""]
[]
[null,null,null,"Highest hazard level for each ‘Uptake Route’",{"$f":"HHL_uptake(E25:E34)","v":""},{"$f":"HHL_uptake(F25:F34)","v":""},{"$f":"HHL_uptake(G25:G34)","v":""},{"$f":"HHL_uptake(H25:H34)","v":""},null,null,null,null,null,null,null,null,null,null,null,null,null,null,null," "]
[]
[]
[]
[]
[]
[null,{"$f":"version","v":"Version 1,00, November 2021"},null,null,null,null,null,null,null,null,null,null,null,null,null,null,null,null,{"$f":"authors","v":"Conception:  Thomas Tenkate and Daniel Drolet"}]

{"sheet":"sum","index":5,"n_rows":27,"n_cols":12,"rows_kept":27,"cut":false,"hidden":false,"merged":[]}
[]
[]
[]
[]
[]
[]
[]
[]
[]
[null,null,null,"Chemical/Product","Supplier/Manufacturer","Process/Location","Notes","Hazard ","Exposure ","Risk","Recommended Control Approach"]
[null,null,1,{"$f":"IF(VLOOKUP($C11,Tb_Sc_Sub,2,FALSE)=0,\"\",VLOOKUP($C11,Tb_Sc_Sub,2,FALSE))","v":""},{"$f":"IF(VLOOKUP($C11,Tb_Sc_Sub,3,FALSE)=0,\"\",VLOOKUP($C11,Tb_Sc_Sub,3,FALSE))","v":""},{"$f":"IF(VLOOKUP($C11,Tb_Sc_Sub,4,FALSE)=0,\"\",VLOOKUP($C11,Tb_Sc_Sub,4,FALSE))","v":""},{"$f":"IF(VLOOKUP($C11,Tb_Sc_Sub,5,FALSE)=0,\"\",VLOOKUP($C11,Tb_Sc_Sub,5,FALSE))","v":""},{"$f":"IF(VLOOKUP($C11,Tb_DB,26,FALSE)=\"\",\"\",VLOOKUP($C11,Tb_DB,26,FALSE))","v":""},{"$f":"IF(VLOOKUP($C11,Tb_DB,27,FALSE)=\"\",\"\",VLOOKUP($C11,Tb_DB,27,FALSE))","v":""},{"$f":"IF(VLOOKUP($C11,Tb_DB,28,FALSE)=\"\",\"\",VLOOKUP($C11,Tb_DB,28,FALSE))","v":""},{"$f":"IF(VLOOKUP($C11,Tb_DB,29,FALSE)=\"\",\"\",VLOOKUP($C11,Tb_DB,29,FALSE))","v":""}]
[null,null,2,"","","","","","","",""]
[null,null,3,"","","","","","","",""]
[null,null,4,"","","","","","","",""]
[null,null,5,"","","","","","","",""]
[null,null,6,"","","","","","","",""]
[null,null,7,"","","","","","","",""]
[null,null,8,"","","","","","","",""]
[null,null,9,"","","","","","","",""]
[null,null,10,"","","","","","","",""]
[]
[]
[]
[]
[]
[]
[null,{"$f":"version","v":"Version 1,00, November 2021"},null,null,null,null,null,null,null,null,null,{"$f":"authors","v":"Conception:  Thomas Tenkate and Daniel Drolet"}]

{"sheet":"RC","index":6,"n_rows":35,"n_cols":14,"rows_kept":35,"cut":false,"hidden":false,"merged":[]}
[]
[]
[]
[]
[]
[]
[]
[]
[]
[]
[]
[]
[]
[]
[]
[]
[]
[]
[]
[]
[]
[]
[]
[]
[]
[]
[]
[]
[]
[]
[]
[]
[]
[]
[null,{"$f":"version","v":"Version 1,00, November 2021"},null,null,null,null,null,null,null,null,null,null,null,{"$f":"authors","v":"Conception:  Thomas Tenkate and Daniel Drolet"}]

{"sheet":"cb","index":7,"n_rows":24,"n_cols":40,"rows_kept":24,"cut":false,"hidden":true,"merged":[[18,24,20,24],[12,24,14,24]]}
[]
[null,null,null,null,null,null,null,null,null,null,null,null,null,null,null,null,null,null,null,null,null,null,null,null,null,null,null,null,null,null,null,null,null,null,null,null,null,"Diag_Volatility_Code",null,"ADD to ttile the INPUT values"]
[]
[]
[]
[]
[null,null,null,null,null,null,null,null,"Liquid",null,null,null,null,null,"Solid"]
[null,null,null,null,null,null,null,null,null,null,null,null,null,null,null,null,null,null,null,null,null,null,null,null,null,null,1,2,3]
[null,null,null,1,2,3,4,null,"Hazard Level","EL1","EL2","EL3","EL4",null,"Hazard Level","EL1","EL2","EL3","EL4"]
[null,null,"A",{"$f":"RiskLevel(J10,P10)","v":""},"","","",null,"A",1,1,1,2,null,"A",1,1,1,2,null,null,"RL1","Low",null,"Exposure Level matrix"]
[null,null,"B","","","","",null,"B",1,1,2,2,null,"B",1,1,2,3,null,null,"RL2","Medium",null,null,null,null,"Volatility"]
[null,null,"C","","","","",null,"C",1,2,3,3,null,"C",1,2,3,4,null,null,"RL3","High",null,null,"Liquid","Low","Med.","High"]
[null,null,"D","","","","",null,"D",2,3,4,4,null,"D",2,3,4,4,null,null,"RL4","Very High",null,"Amount used","Small",1,2,2,null,null,null,1]
[null,null,"E","","","","",null,"E",4,4,4,4,null,"E",4,4,4,4,null,null,null,null,null,null,"Medium",2,3,3,null,null,null,2]
[null,null,null,null,null,null,null,null,null,null,null,null,null,null,null,null,null,null,null,null,null,null,null,null,null,"Large",2,3,4,null,null,null,3]
[]
[null,null,null,null,null,null,null,null,null,null,null,null,null,null,null,null,null,null,null,null,null,null,null,null,null,null,null,"Dustiness"]
[null,null,null,null,null,null,null,null,null,null,null,null,null,null,null,null,null,null,null,null,null,null,null,null,null,"Solid","Low","Med.","High"]
[null,null,null,null,null,null,null,null,null,null,null,null,null,null,null,null,null,null,null,null,null,null,null,null,"Amount used","Small",1,1,2,null,null,null,1]
[null,null,null,null,null,null,null,null,null,null,null,null,null,null,null,null,null,null,null,null,null,null,null,null,null,"Medium",2,3,3,null,null,null,2]
[null,null,null,null,null,null,null,null,null,null,null,null,null,null,null,null,null,null,null,null,null,null,null,null,null,"Large",2,4,4,null,null,null,3]
[]
[]
[null,null,null,null,null,null,null,null,null,null,null,null,null,null,null,null,null,null,null,null,null,null,null,null,null,null,1,2,3]

{"sheet":"DB","index":8,"n_rows":22,"n_cols":31,"rows_kept":22,"cut":false,"hidden":false,"merged":[]}
[]
[]
[]
[]
[null,null,null,null,null,null,null,"Hazard",null,null,null,null,null,null,null,null,null,null,null,null,"Exposure",null,null,null,null,null,null,"Results"]
[]
[null,null,"#","Name","Supplier/Manufacturer","Process/Location","Notes","HC1","HC2","HC3","HC4","HC5","HC6","HC7","HC8","HC9","HC10","HCs","PEHS","DE a","State","OP Temp","BP","Volatility","Dustiness","Qte","Frequency","Hazard ","Exposure ","Risk level","Control"]
[null,null,1,{"$f":"IF(VLOOKUP($C8,Tb_Sc_Sub,2,FALSE)=0,\"\",VLOOKUP($C8,Tb_Sc_Sub,2,FALSE))","v":""},{"$f":"IF(VLOOKUP($C8,Tb_Sc_Sub,3,FALSE)=0,\"\",VLOOKUP($C8,Tb_Sc_Sub,3,FALSE))","v":""},{"$f":"IF(VLOOKUP($C8,Tb_Sc_Sub,4,FALSE)=0,\"\",VLOOKUP($C8,Tb_Sc_Sub,4,FALSE))","v":""},{"$f":"IF(VLOOKUP($C8,Tb_Sc_Sub,5,FALSE)=0,\"\",VLOOKUP($C8,Tb_Sc_Sub,5,FALSE))","v":""},null,null,null,null,null,null,null,null,null,null,{"$f":"HS_concatenation(H8:Q8,H8,I8,J8,K8,L8,M8,N8,O8,P8,Q8)","v":""}]
[null,null,2,{"$f":"IF(VLOOKUP($C9,Tb_Sc_Sub,2,FALSE)=0,\"\",VLOOKUP($C9,Tb_Sc_Sub,2,FALSE))","v":""},"","","",null,null,null,null,null,null,null,null,null,null,""]
[null,null,3,"","","","",null,null,null,null,null,null,null,null,null,null,""]
[null,null,4,"","","","",null,null,null,null,null,null,null,null,null,null,""]
[null,null,5,"","","","",null,null,null,null,null,null,null,null,null,null,""]
[null,null,6,"","","","",null,null,null,null,null,null,null,null,null,null,""]
[null,null,7,"","","","",null,null,null,null,null,null,null,null,null,null,""]
[null,null,8,"","","","",null,null,null,null,null,null,null,null,null,null,""]
[null,null,9,"","","","",null,null,null,null,null,null,null,null,null,null,""]
[null,null,10,"","","","",null,null,null,null,null,null,null,null,null,null,""]
[]
[]
[]
[]
[null,null,{"$f":"version","v":"Version 1,00, November 2021"},null,null,null,null,null,null,null,null,null,null,null,null,null,null,null,null,null,null,null,null,null,null,null,null,null,null,null,{"$f":"authors","v":"Conception:  Thomas Tenkate and Daniel Drolet"}]

{"sheet":"HS","index":9,"n_rows":91,"n_cols":20,"rows_kept":91,"cut":false,"hidden":false,"merged":[]}
[]
[]
[]
[null,null,null,{"$f":"HS_Description","v":0},{"$f":"VLOOKUP(HS_Description,D7:E45,2,FALSE)","v":{"$error":"#N/A"}},null,null,null,null,null,null,null,null,null,null,null,null,null,{"$f":"HS_Code","v":0},{"$f":"VLOOKUP(HS_Code,R7:T45,3,FALSE)","v":{"$error":"#N/A"}}]
[]
[null,null,"#","H Statement","H Code","Eye Damage","Inhalation","Inh. A","Inh. B","Inh. C","Local Skin Damage","Skin uptake, systemic","Derm. A","Derm. B","Derm. C",null,null,"H Code","Line #","Description"]
[null,null,1,"Causes damage to organs (or specific organ[s], if known)","H370","B","C",null,null,null,null,"C",null,null,null,null,null,"H300",13,"Fatal if swallowed"]
[null,null,2,"Causes damage to organs (or specific organ[s], if known) through prolonged or repeated exposure","H372","B","D",null,null,null,null,"D",null,null,null,null,null,"H301",38,"Toxic if swallowed"]
[null,null,3,"Causes eye irritation","H320","C","B",null,null,null,"A",null,null,null,null,null,null,"H302",16,"Harmful if swallowed"]
[null,null,4,"Causes mild skin irritation","H316","C","A",null,null,null,"A",null,null,null,null,null,null,"H303",20,"May be harmful if swallowed"]
[null,null,5,"Causes serious eye damage","H318","D","C",null,null,null,"B",null,null,null,null,null,null,"H304",18,"May be fatal if swallowed and enters airways"]
[null,null,6,"Causes serious eye irritation","H319","C","B",null,null,null,"A",null,null,null,null,null,null,"H305",21,"May be harmful if swallowed and enters airways"]
[null,null,7,"Causes severe skin burns and eye damage","H314","D","D",null,null,null,"D",null,null,null,null,null,null,"H310",14,"Fatal in contact with skin"]
[null,null,8,"Causes severe skin burns and eye damage (Cat 1A)","H314 cat1A","D","D",null,null,null,"D",null,null,null,null,null,null,"H311",39,"Toxic in contact with skin"]
[null,null,9,"Causes severe skin burns and eye damage (Cat 1B)","H314 cat1B","D","C",null,null,null,"C",null,null,null,null,null,null,"H312",17,"Harmful in contact with skin"]
[null,null,10,"Causes severe skin burns and eye damage (Cat 1C)","H314 cat1C","D","C",null,null,null,"C",null,null,null,null,null,null,"H313",22,"May be harmful in contact with skin"]
[null,null,11,"Causes skin irritation","H315","C","B",null,null,null,"B",null,null,null,null,null,null,"H314",7,"Causes severe skin burns and eye damage"]
[null,null,12,"Fatal if inhaled","H330","B",{"$f":"IF(ExceptionC=1,\"E\",\"D\")","v":"D"},null,null,"x",null,null,null,null,null,null,null,"H314 cat1A",8,"Causes severe skin burns and eye damage (Cat 1A)"]
[null,null,13,"Fatal if swallowed","H300","B",{"$f":"IF(ExceptionC=1,\"E\",IF(ExceptionA=1,\"D\",\"\"))","v":""},"x",null,"x",null,{"$f":"IF(ExceptionC=1,\"E\",IF(ExceptionB=1,\"D\",\"\"))","v":""},null,"x","x",null,null,"H314 cat1B",9,"Causes severe skin burns and eye damage (Cat 1B)"]
[null,null,14,"Fatal in contact with skin","H310","B",null,null,null,null,null,{"$f":"IF(ExceptionC=1,\"E\",\"D\")","v":"D"},null,null,"x",null,null,"H314 cat1C",10,"Causes severe skin burns and eye damage (Cat 1C)"]
[null,null,15,"Harmful if inhaled","H332","B","B",null,null,null,null,null,null,null,null,null,null,"H315",11,"Causes skin irritation"]
[null,null,16,"Harmful if swallowed","H302","B",{"$f":"IF(ExceptionA=1,\"B\",\"\")","v":""},"x",null,null,null,{"$f":"IF(ExceptionB=1,\"B\",\"\")","v":""},null,"x",null,null,null,"H316",4,"Causes mild skin irritation"]
[null,null,17,"Harmful in contact with skin","H312","B",null,null,null,null,null,"B",null,null,null,null,null,"H317",24,"May cause an allergic skin reaction"]
[null,null,18,"May be fatal if swallowed and enters airways","H304","B","A",null,null,null,null,null,null,null,null,null,null,"H318",5,"Causes serious eye damage"]
[null,null,19,"May be harmful if inhaled","H333","B","A",null,null,null,null,null,null,null,null,null,null,"H319",6,"Causes serious eye irritation"]
[null,null,20,"May be harmful if swallowed","H303","B",{"$f":"IF(ExceptionA=1,\"A\",\"\")","v":""},"x",null,null,null,{"$f":"IF(ExceptionB=1,\"A\",\"\")","v":""},null,"x",null,null,null,"H320",3,"Causes eye irritation"]
[null,null,21,"May be harmful if swallowed and enters airways","H305","B","A",null,null,null,null,null,null,null,null,null,null,"H330",12,"Fatal if inhaled"]
[null,null,22,"May be harmful in contact with skin","H313","B",null,null,null,null,null,"A",null,null,null,null,null,"H331",37,"Toxic if inhaled"]
[null,null,23,"May cause allergy or asthma symptoms or breathing difficulties if inhaled","H334","B","D",null,null,null,null,"C",null,null,null,null,null,"H332",15,"Harmful if inhaled"]
[null,null,24,"May cause an allergic skin reaction","H317","B","C",null,null,null,"D","D",null,null,null,null,null,"H333",19,"May be harmful if inhaled"]
[null,null,25,"May cause cancer","H350","E","E",null,null,null,"E","E",null,null,null,null,null,"H334",23,"May cause allergy or asthma symptoms or breathing difficulties if inhaled"]
[null,null,26,"May cause cancer by inhalation","H350i","B","E",null,null,null,null,null,null,null,null,null,null,"H335",32,"May cause respiratory irritation"]
[null,null,27,"May cause damage to organs (or specific organ[s], if known)","H371","B","B",null,null,null,null,"B",null,null,null,null,null,"H336",29,"May cause drowsiness or dizziness"]
[null,null,28,"May cause damage to organs (or specific organ[s], if known) through prolonged or repeated exposure","H373","B","C",null,null,null,null,"C",null,null,null,null,null,"H340",30,"May cause genetic defects"]
[null,null,29,"May cause drowsiness or dizziness","H336","B","B",null,null,null,null,null,null,null,null,null,null,"H341",35,"Suspected of causing genetic defects"]
[null,null,30,"May cause genetic defects","H340","E","E",null,null,null,"E","E",null,null,null,null,null,"H350",25,"May cause cancer"]
[null,null,31,"May cause harm to breast-fed children","H362","B","C",null,null,null,null,"C",null,null,null,null,null,"H350i",26,"May cause cancer by inhalation"]
[null,null,32,"May cause respiratory irritation","H335","C","B",null,null,null,"A",null,null,null,null,null,null,"H351",34,"Suspected of causing cancer"]
[null,null,33,"May damage fertility or the unborn child","H360","B","D",null,null,null,null,"D",null,null,null,null,null,"H360",33,"May damage fertility or the unborn child"]
[null,null,34,"Suspected of causing cancer","H351","B","D",null,null,null,"D","D",null,null,null,null,null,"H361",36,"Suspected of damaging fertility or the unborn child"]
[null,null,35,"Suspected of causing genetic defects","H341","B","D",null,null,null,"D","D",null,null,null,null,null,"H362",31,"May cause harm to breast-fed children"]
[null,null,36,"Suspected of damaging fertility or the unborn child","H361","B","C",null,null,null,null,"C",null,null,null,null,null,"H370",1,"Causes damage to organs (or specific organ[s], if known)"]
[null,null,37,"Toxic if inhaled","H331","B","C",null,null,null,null,null,null,null,null,null,null,"H371",27,"May cause damage to organs (or specific organ[s], if known)"]
[null,null,38,"Toxic if swallowed","H301","B",{"$f":"IF(ExceptionA=1,\"C\",\"\")","v":""},"x",null,null,null,{"$f":"IF(ExceptionB=1,\"C\",\"\")","v":""},null,"x",null,null,null,"H372",2,"Causes damage to organs (or specific organ[s], if known) through prolonged or repeated exposure"]
[null,null,39,"Toxic in contact with skin","H311","B",null,null,null,null,null,"C",null,null,null,null,null,"H373",28,"May cause damage to organs (or specific organ[s], if known) through prolonged or repeated exposure"]
[]
[]
[null,null,null,"a Only applies if the assessment does not have the codes H330, H331, H332, and/or H333 (these codes correspond to inhalation exposure statements)"]
[null,null,null,"b Only applies if the assessment does not have the codes H310, H311, H312, and/or H313 (these codes correspond to dermal exposure statements)"]
[null,null,null,"c  Hazard level E only applies to substances that are shown to be acute toxicity Category 1"]
[]
[null,null,null,"Hazard Level [aka Band] (letter code A to E)"]
[]
[]
[null,null,"#","H Statement","H Code","Eye Damage","Inhalation","Inh. A","Inh. B","Inh. C","Local Skin Damage","Skin uptake, systemic","Derm. A","Derm. B","Derm. C"]
[null,null,1,"Causes damage to organs (or specific organ[s], if known)","H370","B","C",null,null,null,"n.a.","C"]
[null,null,2,"Causes damage to organs (or specific organ[s], if known) through prolonged or repeated exposure","H372","B","D",null,null,null,"n.a.","D"]
[null,null,3,"Causes eye irritation","H320","C","B",null,null,null,"A","n.a."]
[null,null,4,"Causes mild skin irritation","H316","C","A",null,null,null,"A","n.a."]
[null,null,5,"Causes serious eye damage","H318","D","C",null,null,null,"B","n.a."]
[null,null,6,"Causes serious eye irritation","H319","C","B",null,null,null,"A","n.a."]
[null,null,7,"Causes severe skin burns and eye damage","H314","D","D",null,null,null,"D","n.a."]
[null,null,8,"Causes skin irritation","H315","C","B",null,null,null,"B","n.a."]
[null,null,9,"Fatal if inhaled","H330","B","D (E)c",null,null,"x","n.a.","n.a."]
[null,null,10,"Fatal if swallowed","H300","B","Da (E)c","x",null,"x",null,"Db (E)c",null,null,"x"]
[null,null,11,"Fatal in contact with skin","H310","B","n.a.",null,null,null,"n.a.","D (E)c",null,null,"x"]
[null,null,12,"Harmful if inhaled","H332","B","B",null,null,null,"n.a.","n.a."]
[null,null,13,"Harmful if swallowed","H302","B","Ba","x",null,null,"n.a.","Bb",null,"x"]
[null,null,14,"Harmful in contact with skin","H312","B","n.a.",null,null,null,"n.a.","B"]
[null,null,15,"May be fatal if swallowed and enters airways","H304","B","A",null,null,null,"n.a.","n.a."]
[null,null,16,"May be harmful if inhaled","H333","B","A",null,null,null,"n.a.","n.a."]
[null,null,17,"May be harmful if swallowed","H303","B","Aa","x",null,null,"n.a.","Ab"]
[null,null,18,"May be harmful if swallowed and enters airways","H305","B","A",null,null,null,"n.a.","n.a."]
[null,null,19,"May be harmful in contact with skin","H313","B","n.a.",null,null,null,"n.a.","A"]
[null,null,20,"May cause allergy or asthma symptoms or breathing difficulties if inhaled","H334","B","D",null,null,null,"n.a.","C"]
[null,null,21,"May cause an allergic skin reaction","H317","B","C",null,null,null,"D","D"]
[null,null,22,"May cause cancer","H350","E","E",null,null,null,"E","E"]
[null,null,23,"May cause cancer by inhalation","H350i","B","E",null,null,null,"n.a.","n.a."]
[null,null,24,"May cause damage to organs (or specific organ[s], if known)","H371","B","B",null,null,null,"n.a.","B"]
[null,null,25,"May cause damage to organs (or specific organ[s], if known) through prolonged or repeated exposure","H373","B","C",null,null,null,"n.a.","C"]
[null,null,26,"May cause drowsiness or dizziness","H336","B","B",null,null,null,"n.a.","n.a."]
[null,null,27,"May cause genetic defects","H340","E","E",null,null,null,"E","E"]
[null,null,28,"May cause harm to breast-fed children","H362","B","C",null,null,null,"n.a.","C"]
[null,null,29,"May cause respiratory irritation","H335","C","B",null,null,null,"A","n.a."]
[null,null,30,"May damage fertility or the unborn child","H360","B","D",null,null,null,"n.a.","D"]
[null,null,31,"Suspected of causing cancer","H351","B","D",null,null,null,"D","D"]
[null,null,32,"Suspected of causing genetic defects","H341","B","D",null,null,null,"D","D"]
[null,null,33,"Suspected of damaging fertility or the unborn child","H361","B","C",null,null,null,"n.a.","C"]
[null,null,34,"Toxic if inhaled","H331","B","C",null,null,null,"n.a.","n.a."]
[null,null,35,"Toxic if swallowed","H301","B","Ca","x",null,null,"n.a.","Cb",null,"x"]
[null,null,36,"Toxic in contact with skin","H311","B","n.a.",null,null,null,"n.a.","C"]

{"sheet":"data","index":10,"n_rows":83,"n_cols":37,"rows_kept":83,"cut":false,"hidden":true,"merged":[]}
[]
[]
[]
[]
[]
[null,null,"Tool Name","eCHap 2.0"]
[null,null,"Authors","Conception:  Thomas Tenkate and Daniel Drolet"]
[null,null,"Op version","Windows (64-bit) NT 10.00",null,null,"Sub selected",null,null,"PEHS code","Yes","No",null,null,"DeAss","Yes","No"]
[null,null,"Excel version",16,null,null,null,null,"Step 1",null,false,true,null,"Step 2",null,false,true,null,null,null,null,null,null,"#","Code HL"]
[null,null,"Version","Version 1,00, November 2021",null,null,"n Sub",null,null,null,null,null,null,null,null,null,null,null,null,null,null,null,null,1,"A"]
[null,null,"Zoom",3,null,null,{"$f":"COUNTA(List_Sub_name)","v":0},null,null,"PEHS code","n HS code",null,null,null,null,null,null,null,null,null,null,null,null,2,"B"]
[null,null,"Skip Disclaimer",false,null,null,{"$f":"Position_Sub(Sub_select,G11)","v":"Substance"},null,"Step 3",null,{"$f":"COUNTA(Zone_HS_Codes)","v":0},null,null,null,null,null,null,null,null,null,null,null,null,3,"C"]
[null,null,null,null,null,null,{"$f":"Supp_Loc_Sub(Sub_select,G11)","v":""},null,null,null,null,null,null,null,null,"Result","Hazard Level",null,null,null,null,null,null,4,"D"]
[null,null,null,null,null,null,null,null,null,null,null,null,null,null,null,"Texte",{"$f":"HHL_uptake_Final(FORM!E36:H36)","v":""},null,null,null,null,null,null,5,"E"]
[null,null,null,null,null,null,null,null,"exception","a","b","c",null,null,null,"Value",{"$f":"HHL_Value(Hazard_Level)","v":""}]
[null,null,null,null,null,null,null,null,null,{"$f":"A_exception(Zone_HS_Codes)","v":"---"},{"$f":"B_exception(Zone_HS_Codes)","v":"---"},{"$f":"IF(DeAss_Code=1,1,0)","v":0}]
[null,null,null,null,null,null,null,null,null,null,null,null,null,null,null,null,null,null,null,null,null,null,null,null,null,null,{"$f":"Op_Temp","v":0}]
[null,null,null,null,null,null,null,null,null,null,null,null,null,null,null,null,null,null,null,null,null,null,null,null,null,null,null,null,null,null,"your\nresult"]
[null,null,null,null,null,null,null,null,null,null,null,null,null,null,null,null,null,null,null,null,null,null,null,"OP","L1",null,null,null,"Limit ONE"]
[null,null,null,null,null,null,null,null,null,"Liquid or solid","Yes","No","Volatility","Code Volatility",null,null,"Cat Dustiness",null,null,null,null,null,null,20,50,"m",{"$f":"ROUND(SLOPE(Y20:Y21,X20:X21),2)","v":1.95},null,{"$f":"ROUND(AA20*Op_Temp+AA21,2)","v":10.92},null,{"$f":"CONCATENATE(\"Operating Temp. :\",Op_Temp,\" °C\")","v":"Operating Temp. : °C"}]
[null,null,null,null,null,null,null,null,"Step 2",null,false,false,{"$f":"Volatility_Diagnostic(Op_Temp,Boiling_Point)","v":""},{"$f":"Volatility_Diagnostic_Code(Op_Temp,Boiling_Point)","v":""},null,null,null,null,null,null,null,null,null,150,304,"b",{"$f":"ROUND(INTERCEPT(Y20:Y21,X20:X21),2)","v":10.92},null,null,null,{"$f":"CONCATENATE(\"Boiling Point: \",Boiling_Point,\" °C\")","v":"Boiling Point:  °C"}]
[null,null,null,null,null,null,null,null,null,null,null,null,null,null,null,"Low",false,null,null,null,null,null,null,null,null,null,null,null,"Limit Two"]
[null,null,null,null,null,null,null,null,"Step 3","Quantity",null,null,"Frequency",null,null,"Medium",false,null,null,null,null,null,null,"OP","L2","L2",null,null,{"$f":"ROUND(AA24*Op_Temp+AA25,2)","v":63.64}]
[null,null,null,null,null,null,null,null,null,null,null,"Step 5",false,null,null,"High",false,null,null,null,null,null,null,20,150,"m",{"$f":"ROUND(SLOPE(Y24:Y25,X24:X25),2)","v":4.32}]
[null,null,null,null,null,null,null,null,"Small",false,null,null,null,null,null,null,null,null,null,null,null,null,null,64,340,"b",{"$f":"ROUND(INTERCEPT(Y24:Y25,X24:X25),2)","v":63.64}]
[null,null,null,null,null,null,null,null,"Medium",false]
[null,null,null,null,null,null,null,null,"Large",false]
[null,null,null,null,null,null,null,null,null,null,null,null,null,null,null,null,null,null,null,null,null,null,null,"#","Code RL","Name RL","Control"]
[null,null,null,null,null,null,null,null,null,"Exposure Level",null,null,null,null,null,null,null,null,null,null,null,null,null,1,"RL1","Low","General ventilation"]
[null,null,null,null,null,null,null,null,"Step 4",{"$f":"Exp_Level(Diag_Volatility_Code,Cat_Dust,Cat_Quant)","v":""},null,null,null,null,null,null,null,null,null,null,null,null,null,2,"RL2","Medium","Engineering control"]
[null,null,null,null,null,null,null,null,null,null,null,null,null,null,null,null,null,null,null,null,null,null,null,3,"RL3","High","Containment"]
[null,null,null,null,null,null,null,null,null,null,null,null,null,null,null,null,null,null,null,null,null,null,null,4,"RL4","Very High","Special"]
[null,null,null,null,null,null,null,null,null,null,null,null,null,null,null,null,"Rec. Control"]
[null,null,null,null,null,null,null,null,null,null,"Risk Level Result",{"$f":"RL_Result_CB(Choice_HL_Code,Exposure_Level)","v":""},null,null,"l",null,{"$f":"Recc_Control(RL_Result)","v":""}]
[]
[null,null,null,null,null,null,null,null,null,null,null,null,null,null,null,null,null,null,null,null,null,null,null,null,"Valisation message"]
[null,null,null,null,null,null,null,null,null,null,null,null,null,null,null,null,null,null,null,null,null,null,null,null,"Liq or solid",1,{"$f":"Liq_Sol=\"\"","v":true},"Select LIQUID or SOLID"]
[null,{"$f":"version","v":"Version 1,00, November 2021"},null,null,null,null,null,null,null,null,null,null,null,null,null,null,null,null,{"$f":"authors","v":"Conception:  Thomas Tenkate and Daniel Drolet"},null,null,null,null,null,"OP temp",2,{"$f":"AND(Liq_Sol=1,Op_Temp=\"\")","v":false},"Enter operating temperature"]
[null,null,null,null,null,null,null,null,null,null,null,null,null,null,null,null,null,null,null,null,null,null,null,null,"Eb Pt",3,{"$f":"AND(Liq_Sol=1,Boiling_Point=\"\")","v":false},"Enter Boiling Point"]
[null,null,null,null,null,null,null,null,null,null,null,null,null,null,null,null,null,null,null,null,null,null,null,null,"Dustiness param",4,{"$f":"AND(Liq_Sol=2,Cat_Dust=\"\")","v":false},"Enter Category Dustiness"]
[null,null,null,{"$f":"IF(Sc!D18=\"\",\"\",Sc!C18&\"- \"&Sc!D18)","v":""},null,null,null,null,null,null,null,null,null,null,null,null,null,null,null,null,null,null,null,null,"Qte parameter",5,{"$f":"AND(Cat_Quant=\"\",OR(Liq_Sol=1,Liq_Sol=2))","v":false},"Enter Quantity Parameter"]
[null,null,null,{"$f":"IF(Sc!D19=\"\",\"\",Sc!C19&\"- \"&Sc!D19)","v":""}]
[null,null,null,{"$f":"IF(Sc!D20=\"\",\"\",Sc!C20&\"- \"&Sc!D20)","v":""},null,null,null,null,null,null,null,null,null,null,null,null,null,null,null,null,null,null,null,null,null,null,"Error message:",{"$f":"ErrorMessageSENDSummary(AA37,AA38,AA39,AA40,AA41)","v":"Select LIQUID or SOLID\r\n\r\n"}]
[null,null,null,{"$f":"IF(Sc!D21=\"\",\"\",Sc!C21&\"- \"&Sc!D21)","v":""}]
[null,null,null,{"$f":"IF(Sc!D22=\"\",\"\",Sc!C22&\"- \"&Sc!D22)","v":""}]
[null,null,null,{"$f":"IF(Sc!D23=\"\",\"\",Sc!C23&\"- \"&Sc!D23)","v":""}]
[null,null,null,{"$f":"IF(Sc!D24=\"\",\"\",Sc!C24&\"- \"&Sc!D24)","v":""}]
[null,null,null,{"$f":"IF(Sc!D25=\"\",\"\",Sc!C25&\"- \"&Sc!D25)","v":""}]
[null,null,null,{"$f":"IF(Sc!D26=\"\",\"\",Sc!C26&\"- \"&Sc!D26)","v":""}]
[null,null,null,{"$f":"IF(Sc!D27=\"\",\"\",Sc!C27&\"- \"&Sc!D27)","v":""}]
[]
[]
[]
[null,null,null,"Title of the Scenario to be edited"]
[null,null,null,"Title Daniel bla bla bla "]
[]
[]
[]
[]
[]
[]
[]
[]
[]
[]
[]
[]
[]
[]
[]
[]
[null,null,null,null,null,null,null,null,null,null,null,null,null,null,null,null,null,null,null,null,null,null,null,null,null,null,null,null,null,null,null,"EL1","Low"]
[null,null,null,null,null,null,null,null,null,null,null,null,null,null,null,null,null,null,null,null,null,null,null,null,null,null,null,null,null,null,null,"EL2","Medium"]
[null,null,null,null,null,null,null,null,null,null,null,null,null,null,null,null,null,null,null,null,null,null,null,null,null,null,null,null,null,null,null,"EL3","High"]
[null,null,null,null,null,null,null,null,null,null,null,null,null,null,null,null,null,null,null,null,null,null,null,null,null,null,null,null,null,null,null,"EL4","Very High"]
[]
[]
[]
[null,null,null,null,null,null,null,null,null,null,null,null,null,null,null,null,null,null,null,null,null,null,null,null,null,null,null,null,null,null,null,null,null,null,null,"A","Low"]
[null,null,null,null,null,null,null,null,null,null,null,null,null,null,null,null,null,null,null,null,null,null,null,null,null,null,null,null,null,null,null,null,null,null,null,"B","Moderate"]
[null,null,null,null,null,null,null,null,null,null,null,null,null,null,null,null,null,null,null,null,null,null,null,null,null,null,null,null,null,null,null,null,null,null,null,"C","High"]
[null,null,null,null,null,null,null,null,null,null,null,null,null,null,null,null,null,null,null,null,null,null,null,null,null,null,null,null,null,null,null,null,null,null,null,"D","Very High"]
[null,null,null,null,null,null,null,null,null,null,null,null,null,null,null,null,null,null,null,null,null,null,null,null,null,null,null,null,null,null,null,null,null,null,null,"E","Extremely High"]